lending/lending_fUSD_20250808
["ID","MTS","AMOUNT","RATE_DAILY","PERIOD"]
[378014385,1754668251867,-1267.6,0.00018497,2]
[378014386,1754668251876,-401.16300679,0.00018497,2]
[378014387,1754668251886,-400.83,0.00018497,2]
[378014388,1754668251896,-400.0,0.00018497,2]
[378014389,1754668251907,-382.12839804,0.00018497,2]
[378014390,1754668251917,-400.0,0.00018497,2]
[378014391,1754668251928,-1057.11,0.00018497,2]
[378014392,1754668251938,-538.19,0.00018497,2]
[378014393,1754668251947,-400.0,0.00018497,2]
[378014394,1754668251957,-400.0,0.00018497,2]
[378014395,1754668251966,-400.0,0.00018497,2]
[378014396,1754668251977,-400.0,0.00018497,2]
[378014397,1754668251987,-403.61601993,0.00018497,2]
[378014398,1754668251997,-400.0,0.00018497,2]
[378014399,1754668252008,-400.0,0.00018497,2]
[378014400,1754668252018,-400.0,0.00018497,2]
[378014401,1754668252027,-400.0,0.00018497,2]
[378014402,1754668252036,-400.0,0.00018497,2]
[378014403,1754668252047,-4050.67,0.00018497,2]
[378014404,1754668252056,-400.0,0.00018497,2]
[378014405,1754668252066,-1533.19,0.00018497,2]
[378014406,1754668252076,-525.41,0.00018497,2]
[378014407,1754668252085,-414.82,0.00018497,2]
[378014408,1754668252095,-1191.73,0.00018497,2]
[378014409,1754668252104,-400.0,0.00018497,2]
[378014410,1754668252114,-500.0,0.00018497,2]
[378014411,1754668252123,-400.0,0.00018497,2]
[378014412,1754668252134,-400.0,0.00018497,2]
[378014413,1754668252143,-400.0,0.00018497,2]
[378014414,1754668252153,-400.0,0.00018497,2]
[378014415,1754668252163,-419.85,0.00018497,2]
[378014416,1754668252173,-400.0,0.00018497,2]
[378014417,1754668252183,-500.0,0.00018497,2]
[378014418,1754668252194,-400.0,0.00018497,2]
[378014419,1754668252204,-1468.65,0.00018497,2]
[378014420,1754668252215,-411.94187382,0.00018497,2]
[378014421,1754668252230,-402.84294752,0.00018497,2]
[378014422,1754668252250,-401.05901663,0.00018497,2]
[378014423,1754668252261,-241.98,0.00018497,2]
[378014424,1754668252272,-822.49,0.00018497,2]
[378014425,1754668252282,-1291.64,0.00018497,2]
[378014426,1754668252292,-691.28,0.00018497,2]
[378014427,1754668252302,-1401.27,0.00018497,2]
[378014428,1754668252311,-400.0,0.00018497,2]
[378014429,1754668252321,-1273.97,0.00018497,2]
[378014430,1754668252331,-400.0,0.00018497,2]
[378014431,1754668252340,-400.0,0.00018497,2]
[378014432,1754668252352,-1336.48,0.00018497,2]
[378014433,1754668252363,-538.93,0.00018497,2]
[378014434,1754668252374,-1297.04,0.00018497,2]
[378014435,1754668252384,-400.0,0.00018497,2]
[378014436,1754668252395,-1914.53,0.00018497,2]
[378014437,1754668252404,-400.0,0.00018497,2]
[378014438,1754668252414,-400.0,0.00018497,2]
[378014439,1754668252425,-400.0,0.00018497,2]
[378014440,1754668252437,-400.0,0.00018497,2]
[378014441,1754668252447,-400.0,0.00018497,2]
[378014442,1754668252458,-400.0,0.00018497,2]
[378014443,1754668252468,-400.0,0.00018497,2]
[378014444,1754668252477,-254.64,0.00018497,2]
[378014445,1754668252488,-400.0,0.00018497,2]
[378014446,1754668252498,-954.89,0.00018497,2]
[378014447,1754668252507,-535.3,0.00018497,2]
[378014448,1754668252518,-519.48,0.00018497,2]
[378014449,1754668252528,-400.0,0.00018497,2]
[378014450,1754668252538,-400.0,0.00018497,2]
[378014451,1754668252548,-429.56,0.00018497,2]
[378014452,1754668252558,-2220.3,0.00018497,2]
[378014453,1754668252569,-400.0,0.00018497,2]
[378014454,1754668252579,-633.59,0.00018497,2]
[378014455,1754668252589,-400.0,0.00018497,2]
[378014456,1754668252599,-439.99,0.00018497,2]
[378014457,1754668252609,-810.23,0.00018497,2]
[378014458,1754668252619,-452.55,0.00018497,2]
[378014459,1754668252633,-368.20979511,0.00018497,2]
[378014460,1754668252643,-1684.05,0.00018497,2]
[378014461,1754668252653,-500.0,0.00018497,2]
[378014462,1754668252662,-400.0,0.00018497,2]
[378014463,1754668252672,-1548.41,0.00018497,2]
[378014464,1754668252682,-400.0,0.00018497,2]
[378014465,1754668252691,-400.0,0.00018497,2]
[378014466,1754668252701,-400.0,0.00018497,2]
[378014467,1754668252711,-4759.84,0.00018497,2]
[378014468,1754668252720,-1117.92,0.00018497,2]
[378014469,1754668252731,-400.0,0.00018497,2]
[378014470,1754668252741,-404.06,0.00018497,2]
[378014471,1754668252750,-400.0,0.00018497,2]
[378014472,1754668252762,-400.0,0.00018497,2]
[378014473,1754668252773,-863.94,0.00018497,2]
[378014474,1754668252783,-400.0,0.00018497,2]
[378014475,1754668252792,-1144.05,0.00018497,2]
[378014476,1754668252802,-400.0,0.00018497,2]
[378014477,1754668252813,-1482.87,0.00018497,2]
[378014478,1754668252823,-400.0,0.00018497,2]
[378014479,1754668252834,-400.0,0.00018497,2]
[378014480,1754668252844,-400.0,0.00018497,2]
[378014481,1754668252853,-400.0,0.00018497,2]
[378014482,1754668252864,-400.0,0.00018497,2]
[378014483,1754668253117,-400.0,0.00018497,2]
[378014484,1754668253128,-400.0,0.00018497,2]
[378014485,1754668253138,-400.0,0.00018497,2]
[378014486,1754668253148,-1533.5,0.00018497,2]
[378014487,1754668253158,-400.0,0.00018497,2]
[378014488,1754668253170,-661.42,0.00018497,2]
[378014489,1754668253180,-400.0,0.00018497,2]
[378014490,1754668253190,-879.58,0.00018497,2]
[378014491,1754668253200,-1334.46,0.00018497,2]
[378014492,1754668253210,-1382.05,0.00018497,2]
[378014493,1754668253220,-400.0,0.00018497,2]
[378014494,1754668253230,-413.52,0.00018497,2]
[378014495,1754668253241,-489.35,0.00018497,2]
[378014496,1754668253251,-400.0,0.00018497,2]
[378014497,1754668253261,-400.0,0.00018497,2]
[378014498,1754668253270,-400.0,0.00018497,2]
[378014499,1754668253280,-400.0,0.00018497,2]
[378014500,1754668253290,-467.86,0.00018497,2]
[378014501,1754668253299,-659.96,0.00018497,2]
[378014502,1754668253309,-400.0,0.00018497,2]
[378014503,1754668253319,-3267.55,0.00018497,2]
[378014504,1754668253330,-400.0,0.00018497,2]
[378014505,1754668253339,-400.0,0.00018497,2]
[378014506,1754668253349,-400.0,0.00018497,2]
[378014507,1754668253363,-1481.48,0.00018497,2]
[378014508,1754668253372,-805.89,0.00018497,2]
[378014509,1754668253383,-400.0,0.00018497,2]
[378014510,1754668253395,-400.25,0.00018497,2]
[378014511,1754668253405,-772.22,0.00018497,2]
[378014512,1754668253414,-300.0,0.00018497,2]
[378014513,1754668253424,-400.0,0.00018497,2]
[378014514,1754668253435,-400.0,0.00018497,2]
[378014515,1754668253444,-400.0,0.00018497,2]
[378014516,1754668253453,-448.32,0.00018497,2]
[378014517,1754668253463,-1181.5,0.00018497,2]
[378014518,1754668253472,-400.0,0.00018497,2]
[378014519,1754668253483,-467.9,0.00018497,2]
[378014520,1754668253494,-1618.74,0.00018497,2]
[378014521,1754668253503,-1744.59,0.00018497,2]
[378014522,1754668253514,-1319.04,0.00018497,2]
[378014523,1754668253523,-446.65,0.00018497,2]
[378014524,1754668253533,-400.0,0.00018497,2]
[378014525,1754668253542,-400.0,0.00018497,2]
[378014526,1754668253551,-73.58872444,0.00018497,2]
[378014527,1754668255049,-400.0,0.00018397,2]
[378014528,1754668255058,-89.85534809,0.00018397,2]
[378014529,1754668255162,-310.14465191,0.00018397,2]
[378014530,1754668255171,-400.0,0.00018397,2]
[378014531,1754668255181,-1246.77821185,0.00018449,2]
[378014532,1754668255205,-608.56444039,0.00018449,2]
[378014533,1754668255337,-4842.33694894,0.00018449,2]
[378014534,1754668255346,-400.0,0.00018495,2]
[378014535,1754668255359,-400.0,0.00018495,2]
[378014536,1754668255368,-919.35127556,0.00018497,2]
[378014537,1754668255378,-5840.41,0.00018497,2]
[378014538,1754668255387,-400.0,0.00018497,2]
[378014539,1754668255397,-761.59,0.00018497,2]
[378014540,1754668255407,-400.0,0.00018497,2]
[378014541,1754668255416,-899.51,0.00018497,2]
[378014542,1754668255426,-400.0,0.00018497,2]
[378014543,1754668255435,-400.0,0.00018497,2]
[378014544,1754668255445,-500.0,0.00018497,2]
[378014545,1754668255455,-400.0,0.00018497,2]
[378014546,1754668255464,-400.0,0.00018497,2]
[378014547,1754668255474,-500.0,0.00018497,2]
[378014548,1754668255483,-2245.35,0.00018497,2]
[378014549,1754668255492,-3218.14,0.00018497,2]
[378014550,1754668255502,-400.0,0.00018497,2]
[378014551,1754668255511,-400.0,0.00018497,2]
[378014552,1754668255520,-2642.41,0.00018497,2]
[378014553,1754668255530,-400.0,0.00018497,2]
[378014554,1754668255539,-550.22,0.00018497,2]
[378014555,1754668255548,-1217.11,0.00018497,2]
[378014556,1754668255558,-400.91572225,0.00018497,2]
[378014557,1754668255567,-400.0,0.00018497,2]
[378014558,1754668255576,-400.0,0.00018497,2]
[378014559,1754668255586,-400.0,0.00018497,2]
[378014560,1754668255595,-400.0,0.00018497,2]
[378014561,1754668255605,-492.61,0.00018497,2]
[378014562,1754668255615,-400.0,0.00018497,2]
[378014563,1754668255624,-400.0,0.00018497,2]
[378014564,1754668255634,-429.75,0.00018497,2]
[378014565,1754668255644,-400.0,0.00018497,2]
[378014566,1754668255654,-400.0,0.00018497,2]
[378014567,1754668255663,-1401.25,0.00018497,2]
[378014568,1754668255673,-297.0,0.00018497,2]
[378014569,1754668255683,-1300.85,0.00018497,2]
[378014570,1754668255692,-3998.61,0.00018497,2]
[378014571,1754668255701,-5520.42,0.00018497,2]
[378014572,1754668255711,-400.0,0.00018497,2]
[378014573,1754668255720,-809.89,0.00018497,2]
[378014574,1754668255729,-439.68,0.00018497,2]
[378014575,1754668255739,-5303.63,0.00018497,2]
[378014576,1754668255748,-400.0,0.00018497,2]
[378014577,1754668255757,-400.0,0.00018497,2]
[378014578,1754668255766,-500.0,0.00018497,2]
[378014579,1754668255775,-400.0,0.00018497,2]
[378014580,1754668255784,-400.0,0.00018497,2]
[378014581,1754668255794,-400.0,0.00018497,2]
[378014582,1754668255803,-400.0,0.00018497,2]
[378014583,1754668255813,-400.0,0.00018497,2]
[378014584,1754668255822,-744.95,0.00018497,2]
[378014585,1754668255832,-12813.82,0.00018497,2]
[378014586,1754668255841,-400.0,0.00018497,2]
[378014587,1754668255850,-666.67,0.00018497,2]
[378014588,1754668255859,-400.0,0.00018497,2]
[378014589,1754668255868,-400.0,0.00018497,2]
[378014590,1754668255877,-400.0,0.00018497,2]
[378014591,1754668255886,-400.0,0.00018497,2]
[378014592,1754668255895,-400.0,0.00018497,2]
[378014593,1754668255905,-401.00561119,0.00018498,2]
[378014594,1754668255914,-400.0,0.00018498,2]
[378014595,1754668255924,-401.19819266,0.00018498,2]
[378014596,1754668255933,-400.0,0.00018498,2]
[378014597,1754668255942,-400.0,0.00018498,2]
[378014598,1754668255951,-400.0,0.00018498,2]
[378014599,1754668255961,-370.37314087,0.00018498,2]
[378014600,1754668255970,-403.72968858,0.00018498,2]
[378014601,1754668255979,-400.55956771,0.00018498,2]
[378014602,1754668255989,-402.07982702,0.00018498,2]
[378014603,1754668255998,-400.0,0.00018498,2]
[378014604,1754668256008,-361.32667166,0.00018498,2]
[378014605,1754668256019,-401.26005879,0.00018498,2]
[378014606,1754668256030,-400.0,0.00018498,2]
[378014607,1754668256040,-400.0,0.00018498,2]
[378014608,1754668256050,-402.29617791,0.00018498,2]
[378014609,1754668256060,-400.0,0.00018498,2]
[378014610,1754668256070,-403.47776744,0.00018498,2]
[378014611,1754668256079,-403.40001438,0.00018498,2]
[378014612,1754668256088,-400.75855779,0.00018498,2]
[378014613,1754668256098,-400.58309387,0.00018498,2]
[378014614,1754668256108,-402.31649055,0.00018498,2]
[378014615,1754668256119,-403.33897976,0.00018498,2]
[378014616,1754668256129,-400.0,0.00018498,2]
[378014617,1754668256139,-367.67227485,0.00018498,2]
[378014618,1754668256148,-400.0,0.00018498,2]
[378014619,1754668256158,-400.0,0.00018498,2]
[378014620,1754668256168,-308.16328072,0.00018498,2]
[378014621,1754668256177,-400.0,0.00018498,2]
[378014622,1754668256186,-400.0,0.00018498,2]
[378014623,1754668256196,-400.0,0.00018498,2]
[378014624,1754668256206,-400.0,0.00018498,2]
[378014625,1754668256215,-400.0,0.00018498,2]
[378014626,1754668256225,-500.0,0.00018498,2]
[378014627,1754668256234,-402.59521197,0.00018498,2]
[378014628,1754668256244,-400.0,0.00018498,2]
[378014629,1754668256253,-500.0,0.00018498,2]
[378014630,1754668256263,-500.0,0.00018498,2]
[378014631,1754668256272,-500.0,0.00018498,2]
[378014632,1754668256281,-1499.01,0.00018498,2]
[378014633,1754668256290,-638.46,0.00018498,2]
[378014634,1754668256300,-930.69,0.00018498,2]
[378014635,1754668256311,-997.64,0.00018498,2]
[378014636,1754668256319,-400.0,0.00018498,2]
[378014637,1754668256329,-532.57,0.00018498,2]
[378014638,1754668256338,-500.0,0.00018498,2]
[378014639,1754668256348,-692.24,0.00018498,2]
[378014640,1754668256360,-400.0,0.00018498,2]
[378014641,1754668256369,-400.0,0.00018498,2]
[378014642,1754668256379,-795.17,0.00018498,2]
[378014643,1754668256388,-400.0,0.00018498,2]
[378014644,1754668256399,-661.89,0.00018498,2]
[378014645,1754668256408,-400.0,0.00018498,2]
[378014646,1754668256417,-400.0,0.00018498,2]
[378014647,1754668256427,-493.55,0.00018498,2]
[378014648,1754668256436,-400.0,0.00018498,2]
[378014649,1754668256445,-400.0,0.00018498,2]
[378014650,1754668256455,-465.83,0.00018498,2]
[378014651,1754668256465,-400.0,0.00018498,2]
[378014652,1754668256474,-400.0,0.00018498,2]
[378014653,1754668256484,-652.8,0.00018498,2]
[378014654,1754668256493,-1556.47,0.00018498,2]
[378014655,1754668256503,-1783.73,0.00018498,2]
[378014656,1754668256512,-400.0,0.00018498,2]
[378014657,1754668256522,-1242.28,0.00018498,2]
[378014658,1754668256532,-436.74,0.00018498,2]
[378014659,1754668256541,-2202.08,0.00018498,2]
[378014660,1754668256551,-474.82,0.00018498,2]
[378014661,1754668256560,-1384.17,0.00018498,2]
[378014662,1754668256570,-6366.32,0.00018498,2]
[378014663,1754668256580,-401.09,0.00018498,2]
[378014664,1754668256590,-400.0,0.00018498,2]
[378014665,1754668256599,-500.0,0.00018498,2]
[378014666,1754668256609,-2046.97,0.00018498,2]
[378014667,1754668256618,-519.75,0.00018498,2]
[378014668,1754668256628,-400.0,0.00018498,2]
[378014669,1754668256637,-981.86,0.00018498,2]
[378014670,1754668256646,-500.0,0.00018498,2]
[378014671,1754668256655,-1854.35,0.00018498,2]
[378014672,1754668256665,-624.9,0.00018498,2]
[378014673,1754668256675,-1523.71,0.00018498,2]
[378014674,1754668256684,-4024.95,0.00018498,2]
[378014675,1754668256694,-949.84,0.00018498,2]
[378014676,1754668256703,-1248.23,0.00018498,2]
[378014677,1754668256713,-1641.14,0.00018498,2]
[378014678,1754668256723,-500.0,0.00018498,2]
[378014679,1754668256731,-483.72,0.00018498,2]
[378014680,1754668256741,-4389.94,0.00018498,2]
[378014681,1754668256750,-2352.25,0.00018498,2]
[378014682,1754668256759,-801.35,0.00018498,2]
[378014683,1754668256769,-500.0,0.00018498,2]
[378014684,1754668256778,-500.0,0.00018498,2]
[378014685,1754668256789,-438.22,0.00018498,2]
[378014686,1754668256798,-1994.21,0.00018498,2]
[378014687,1754668256808,-1119.0,0.00018498,2]
[378014688,1754668256818,-495.67,0.00018498,2]
[378014689,1754668256827,-592.07,0.00018498,2]
[378014690,1754668256837,-400.0,0.00018498,2]
[378014691,1754668256846,-400.0,0.00018498,2]
[378014692,1754668256856,-400.0,0.00018498,2]
[378014693,1754668256865,-1353.43,0.00018498,2]
[378014694,1754668256875,-412.47,0.00018498,2]
[378014695,1754668256884,-500.0,0.00018498,2]
[378014696,1754668256894,-1254.95,0.00018498,2]
[378014697,1754668256905,-2874.67,0.00018498,2]
[378014698,1754668256915,-483.56,0.00018498,2]
[378014699,1754668256926,-1290.06,0.00018498,2]
[378014700,1754668256936,-412.54,0.00018498,2]
[378014701,1754668256946,-400.0,0.00018498,2]
[378014702,1754668256958,-1377.92,0.00018498,2]
[378014703,1754668256968,-400.0,0.00018498,2]
[378014704,1754668256978,-400.0,0.00018498,2]
[378014705,1754668256988,-1461.27,0.00018498,2]
[378014706,1754668256999,-400.0,0.00018498,2]
[378014707,1754668257009,-4013.37,0.00018498,2]
[378014708,1754668257018,-2358.32,0.00018498,2]
[378014709,1754668257027,-1472.48,0.00018498,2]
[378014710,1754668257037,-1201.12,0.00018498,2]
[378014711,1754668257046,-3195.53,0.00018498,2]
[378014712,1754668257056,-5015.17,0.00018498,2]
[378014713,1754668257065,-429.96,0.00018498,2]
[378014714,1754668257075,-1666.79,0.00018498,2]
[378014715,1754668257084,-500.0,0.00018498,2]
[378014716,1754668257094,-437.62,0.00018498,2]
[378014717,1754668257104,-2933.16,0.00018498,2]
[378014718,1754668257114,-1000.0,0.00018498,2]
[378014719,1754668257124,-3159.14,0.00018498,2]
[378014720,1754668257134,-440.18,0.00018498,2]
[378014721,1754668257143,-2117.37,0.00018498,2]
[378014722,1754668257154,-400.0,0.00018498,2]
[378014723,1754668257165,-400.0,0.00018498,2]
[378014724,1754668257175,-150.0,0.00018502,2]
[378014725,1754668257186,-9999.99,0.00018533,2]
[378014726,1754668257195,-150.99,0.00018533,2]
[378014727,1754668257206,-7542.84,0.00018533,2]
[378014728,1754668257215,-12981.51,0.00018533,2]
[378014729,1754668257227,-150.0,0.00018542,2]
[378014730,1754668257238,-150.0,0.00018546,2]
[378014731,1754668257248,-150.0,0.0001855,2]
[378014732,1754668257260,-168.0,0.00018563,2]
[378014733,1754668257270,-150.0,0.00018582,2]
[378014734,1754668257280,-150.0,0.00018591,2]
[378014735,1754668257289,-315.0,0.000186,2]
[378014736,1754668257299,-168.0,0.000186,2]
[378014737,1754668257308,-150.0,0.00018623,2]
[378014738,1754668257319,-4611.66429238,0.00018624,2]
[378014739,1754668257328,-168.0,0.0001863,2]
[378014740,1754668257338,-500.0,0.0001865,2]
[378014741,1754668257348,-500.0,0.0001865,2]
[378014742,1754668257360,-661.89,0.0001865,2]
[378014743,1754668257369,-500.0,0.0001865,2]
[378014744,1754668257379,-500.0,0.0001865,2]
[378014745,1754668257388,-500.0,0.0001865,2]
[378014746,1754668257398,-500.0,0.0001865,2]
[378014747,1754668257408,-242.91,0.0001865,2]
[378014748,1754668257418,-500.0,0.0001865,2]
[378014749,1754668257427,-4440.42,0.0001865,2]
[378014750,1754668257439,-400.0,0.00018651,2]
[378014751,1754668257449,-400.0,0.00018651,2]
[378014752,1754668257459,-400.0,0.00018651,2]
[378014753,1754668257469,-400.0,0.00018651,2]
[378014754,1754668257478,-400.0,0.00018651,2]
[378014755,1754668257488,-400.0,0.00018651,2]
[378014756,1754668257498,-400.0,0.00018651,2]
[378014757,1754668257507,-400.0,0.00018651,2]
[378014758,1754668257517,-873.74,0.00018651,2]
[378014759,1754668257527,-500.0,0.00018651,2]
[378014760,1754668257537,-400.0,0.00018651,2]
[378014761,1754668257547,-429.78,0.00018651,2]
[378014762,1754668257557,-400.0,0.00018651,2]
[378014763,1754668257568,-400.0,0.00018651,2]
[378014764,1754668257578,-381.48508929,0.00018651,2]
[378014765,1754668257588,-400.0,0.00018651,2]
[378014766,1754668257598,-412.8,0.00018651,2]
[378014767,1754668257608,-400.0,0.00018651,2]
[378014768,1754668257619,-400.0,0.00018651,2]
[378014769,1754668257629,-400.0,0.00018651,2]
[378014770,1754668257639,-400.0,0.00018651,2]
[378014771,1754668257648,-400.0,0.00018651,2]
[378014772,1754668257658,-400.0,0.00018651,2]
[378014773,1754668257668,-400.0,0.00018651,2]
[378014774,1754668257678,-400.0,0.00018651,2]
[378014775,1754668257688,-400.0,0.00018651,2]
[378014776,1754668257698,-400.0,0.00018651,2]
[378014777,1754668257708,-400.0,0.00018651,2]
[378014778,1754668257718,-400.0,0.00018651,2]
[378014779,1754668257729,-400.0,0.00018651,2]
[378014780,1754668257738,-400.0,0.00018651,2]
[378014781,1754668257749,-400.0,0.00018651,2]
[378014782,1754668257759,-400.0,0.00018651,2]
[378014783,1754668257769,-400.0,0.00018651,2]
[378014784,1754668257779,-400.0,0.00018651,2]
[378014785,1754668257788,-400.0,0.00018651,2]
[378014786,1754668257798,-516.62,0.00018651,2]
[378014787,1754668257809,-400.0,0.00018651,2]
[378014788,1754668257819,-400.0,0.00018651,2]
[378014789,1754668257828,-400.0,0.00018651,2]
[378014790,1754668257839,-400.0,0.00018651,2]
[378014791,1754668257851,-400.0,0.00018651,2]
[378014792,1754668257860,-411.71,0.00018651,2]
[378014793,1754668257872,-400.0,0.00018651,2]
[378014794,1754668257882,-400.0,0.00018651,2]
[378014795,1754668257892,-400.0,0.00018651,2]
[378014796,1754668257903,-400.0,0.00018651,2]
[378014797,1754668257914,-400.0,0.00018651,2]
[378014798,1754668257924,-400.0,0.00018651,2]
[378014799,1754668257934,-400.0,0.00018651,2]
[378014800,1754668257944,-400.0,0.00018651,2]
[378014801,1754668257954,-429.66868319,0.00018651,2]
[378014802,1754668257964,-400.0,0.00018651,2]
[378014803,1754668257975,-400.0,0.00018651,2]
[378014804,1754668257985,-400.0,0.00018651,2]
[378014805,1754668257996,-400.0,0.00018651,2]
[378014806,1754668258007,-400.0,0.00018651,2]
[378014807,1754668258019,-401.86905839,0.00018651,2]
[378014808,1754668258029,-406.75662526,0.00018651,2]
[378014809,1754668258039,-400.0,0.00018651,2]
[378014810,1754668258049,-400.0,0.00018651,2]
[378014811,1754668258060,-400.0,0.00018651,2]
[378014812,1754668258070,-400.0,0.00018651,2]
[378014813,1754668258080,-400.0,0.00018651,2]
[378014814,1754668258089,-400.0,0.00018651,2]
[378014815,1754668258098,-400.0,0.00018651,2]
[378014816,1754668258108,-400.0,0.00018651,2]
[378014817,1754668258118,-400.0,0.00018651,2]
[378014818,1754668258128,-400.0,0.00018651,2]
[378014819,1754668258138,-400.0,0.00018651,2]
[378014820,1754668258148,-525.79,0.00018651,2]
[378014821,1754668258158,-400.0,0.00018651,2]
[378014822,1754668258168,-400.0,0.00018651,2]
[378014823,1754668258177,-400.0,0.00018651,2]
[378014824,1754668258187,-400.0,0.00018651,2]
[378014825,1754668258196,-400.0,0.00018651,2]
[378014826,1754668258206,-400.0,0.00018651,2]
[378014827,1754668258216,-400.0,0.00018651,2]
[378014828,1754668258226,-400.0,0.00018651,2]
[378014829,1754668258235,-400.0,0.00018651,2]
[378014830,1754668258245,-400.0,0.00018651,2]
[378014831,1754668258254,-400.0,0.00018651,2]
[378014832,1754668258264,-400.0,0.00018651,2]
[378014833,1754668258274,-400.0,0.00018651,2]
[378014834,1754668258283,-400.0,0.00018651,2]
[378014835,1754668258294,-400.0,0.00018651,2]
[378014836,1754668258304,-400.0,0.00018651,2]
[378014837,1754668258314,-503.64,0.00018651,2]
[378014838,1754668258324,-400.0,0.00018651,2]
[378014839,1754668258334,-444.06,0.00018651,2]
[378014840,1754668258344,-408.2,0.00018651,2]
[378014841,1754668258355,-490.63,0.00018651,2]
[378014842,1754668258367,-400.0,0.00018651,2]
[378014843,1754668258376,-400.0,0.00018651,2]
[378014844,1754668258386,-400.0,0.00018651,2]
[378014845,1754668258397,-400.0,0.00018651,2]
[378014846,1754668258406,-339.2117431,0.00018651,2]
[378014847,1754668258416,-400.0,0.00018651,2]
[378014848,1754668258426,-400.0,0.00018651,2]
[378014849,1754668258437,-400.0,0.00018651,2]
[378014850,1754668258447,-400.0,0.00018651,2]
[378014851,1754668258457,-400.0,0.00018651,2]
[378014852,1754668258467,-434.49,0.00018651,2]
[378014853,1754668258477,-400.0,0.00018651,2]
[378014854,1754668258486,-400.0,0.00018651,2]
[378014855,1754668258496,-400.0,0.00018651,2]
[378014856,1754668258506,-400.0,0.00018651,2]
[378014857,1754668258517,-400.0,0.00018651,2]
[378014858,1754668258527,-400.0,0.00018651,2]
[378014859,1754668258537,-602.32,0.00018651,2]
[378014860,1754668258547,-400.0,0.00018651,2]
[378014861,1754668258557,-413.54838209,0.00018651,2]
[378014862,1754668258568,-400.0,0.00018651,2]
[378014863,1754668258579,-455.88,0.00018651,2]
[378014864,1754668258589,-400.0,0.00018651,2]
[378014865,1754668258599,-541.6,0.00018651,2]
[378014866,1754668258608,-400.0,0.00018651,2]
[378014867,1754668258619,-400.0,0.00018651,2]
[378014868,1754668258628,-400.0,0.00018651,2]
[378014869,1754668258638,-400.0,0.00018651,2]
[378014870,1754668258648,-400.0,0.00018651,2]
[378014871,1754668258658,-400.0,0.00018651,2]
[378014872,1754668258669,-400.0,0.00018651,2]
[378014873,1754668258679,-400.0,0.00018651,2]
[378014874,1754668258688,-400.0,0.00018651,2]
[378014875,1754668258698,-450.23,0.00018651,2]
[378014876,1754668258708,-401.05681312,0.00018651,2]
[378014877,1754668258718,-400.0,0.00018651,2]
[378014878,1754668258728,-387.50041366,0.00018651,2]
[378014879,1754668258738,-468.5,0.00018651,2]
[378014880,1754668258748,-500.0,0.00018651,2]
[378014881,1754668258757,-410.02,0.00018651,2]
[378014882,1754668258767,-251.34,0.0001866,2]
[378014883,1754668258777,-150.0,0.00018663,2]
[378014884,1754668258787,-223.55078649,0.00018664,2]